{"text_format":"3","workbook":"xlsx","n_sheets":2,"sheets":["SÅ HÄR ANVÄNDER DU ARBETSBOKEN","BETYGSBOK"],"not_rendered":{"defined_names":5},"read":"whole","date_system":"1900"}

{"sheet":"SÅ HÄR ANVÄNDER DU ARBETSBOKEN","index":0,"n_rows":10,"n_cols":2,"rows_kept":10}
[null,"INSTRUKTIONER"]
[null,"Använd kalkylbladet BETYGSBOK för att beräkna betyg för uppgifter som är värda ett visst antal poäng. "]
[null,"Instruktioner: Se till att du sparar säkerhetskopior av betygen."]
[null,"1. Fyll i skolans namn, klassinformation, elevnamn och elev-ID (valfritt).   "]
[null,"2. Justera tabellen Betyg och snittbetyg så att den passar det poängsystemet du använder."]
[null,"3. Fyll i namn för uppgiften eller provet med början i cell G7, tillsammans med den procentandel som varje uppgift/prov är värt (t.ex. ”Slutprov” och ”50 %”). "]
[null,"4. Fyll i resultatet för varje elev för varje uppgift eller prov. Kolumnerna ”Resultat”, ”Bokstavsbetyg” och ”Snittbetyg” beräknas automatiskt, men du kan åsidosätta dem om du vill. Snitt- och slutbetygen är ofullständiga tills alla resultat har fyllts i på grund av beräkningsmetoden för betygen."]
[null,"Använd kommandot Utskriftsområde på menyn Sidlayout om du vill ändra det område du vill skriva ut."]
[null,"Resultat, bokstavsbetyg och snittbetyg är inte giltiga förrän 100 % av proven och uppgifterna är slutförda. "]
[null,"Ange varje uppgift eller prov och procentandelen av betygssumman i cellerna G7 TILL W8."]

{"sheet":"BETYGSBOK","index":1,"n_rows":20,"n_cols":23,"rows_kept":20,"merged":[[5,1,5,5],[6,1,6,3],[6,4,6,5],[7,1,8,3],[7,4,7,5],[8,4,8,5],[15,1,15,5],[16,1,16,2],[17,1,17,2],[18,1,18,2],[19,1,19,2]]}
[null,"Skolans namn"]
[]
[{"$nulls":6},"Resultat",{"v":0,"d":"0%"},{"v":0.6,"d":"60%"},{"v":0.63,"d":"63%"},{"v":0.67,"d":"67%"},{"v":0.7,"d":"70%"},{"v":0.73,"d":"73%"},{"v":0.77,"d":"77%"},{"v":0.8,"d":"80%"},{"v":0.83,"d":"83%"},{"v":0.87,"d":"87%"},{"v":0.9,"d":"90%"},{"v":0.93,"d":"93%"},{"v":0.97,"d":"97%"}]
[{"$nulls":6},"Bokstavsbetyg","F","D-","D","D+","C-","C","C+","B-","B","B+","A-","A","A+"]
[{"$nulls":6},"Snittbetyg",0,0.67,1,1.33,1.67,2,2.33,2.67,3,3.33,3.67,4,4]
[null,"Lärarens namn"]
[null,"Klass/Projekt",null,null,"Namn på uppgift eller prov"]
[null,"År/termin/kvartal",null,null,"Procentandel (bör totalt vara 100 %)"]
[{"$nulls":4},{"$f":"\"Procent totalt: \"&SUM(G8:W8)*100&\"%\"","v":"Procent totalt: 0%"}]
[null,"Elevens namn","Elev-ID","Resultat","Bokstavsbetyg","Snittbetyg","Kolumn6","Kolumn7","Kolumn8","Kolumn9","Kolumn10","Kolumn11","Kolumn12","Kolumn13","Kolumn14","Kolumn15","Kolumn16","Kolumn17","Kolumn18","Kolumn19","Kolumn20","Kolumn21","Kolumn22"]
[{"$nulls":3},{"$f":"(IF(SUM(Betyg[[#This Row],[Kolumn6]:[Kolumn22]]),ROUND(SUMPRODUCT($G$8:$W$8,Betyg[[#This Row],[Kolumn6]:[Kolumn22]]),2),\"\"))","v":""},{"$f":"IF(Betyg[[#This Row],[Resultat]]<>\"\",HLOOKUP(Betyg[[#This Row],[Resultat]],Betygstabell,2),\"\")","v":""},{"$f":"IF(Betyg[[#This Row],[Resultat]]<>\"\",HLOOKUP(Betyg[[#This Row],[Resultat]],Betygstabell,3),\"\")","v":""}]
[{"$nulls":3},{"$f":"(IF(SUM(Betyg[[#This Row],[Kolumn6]:[Kolumn22]]),ROUND(SUMPRODUCT($G$8:$W$8,Betyg[[#This Row],[Kolumn6]:[Kolumn22]]),2),\"\"))","v":""},{"$f":"IF(Betyg[[#This Row],[Resultat]]<>\"\",HLOOKUP(Betyg[[#This Row],[Resultat]],Betygstabell,2),\"\")","v":""},{"$f":"IF(Betyg[[#This Row],[Resultat]]<>\"\",HLOOKUP(Betyg[[#This Row],[Resultat]],Betygstabell,3),\"\")","v":""}]
[{"$nulls":3},{"$f":"(IF(SUM(Betyg[[#This Row],[Kolumn6]:[Kolumn22]]),ROUND(SUMPRODUCT($G$8:$W$8,Betyg[[#This Row],[Kolumn6]:[Kolumn22]]),2),\"\"))","v":""},{"$f":"IF(Betyg[[#This Row],[Resultat]]<>\"\",HLOOKUP(Betyg[[#This Row],[Resultat]],Betygstabell,2),\"\")","v":""},{"$f":"IF(Betyg[[#This Row],[Resultat]]<>\"\",HLOOKUP(Betyg[[#This Row],[Resultat]],Betygstabell,3),\"\")","v":""}]
[{"$nulls":3},{"$f":"(IF(SUM(Betyg[[#This Row],[Kolumn6]:[Kolumn22]]),ROUND(SUMPRODUCT($G$8:$W$8,Betyg[[#This Row],[Kolumn6]:[Kolumn22]]),2),\"\"))","v":""},{"$f":"IF(Betyg[[#This Row],[Resultat]]<>\"\",HLOOKUP(Betyg[[#This Row],[Resultat]],Betygstabell,2),\"\")","v":""},{"$f":"IF(Betyg[[#This Row],[Resultat]]<>\"\",HLOOKUP(Betyg[[#This Row],[Resultat]],Betygstabell,3),\"\")","v":""}]
[{"$nulls":3},{"$f":"(IF(SUM(Betyg[[#This Row],[Kolumn6]:[Kolumn22]]),ROUND(SUMPRODUCT($G$8:$W$8,Betyg[[#This Row],[Kolumn6]:[Kolumn22]]),2),\"\"))","v":""},{"$f":"IF(Betyg[[#This Row],[Resultat]]<>\"\",HLOOKUP(Betyg[[#This Row],[Resultat]],Betygstabell,2),\"\")","v":""},{"$f":"IF(Betyg[[#This Row],[Resultat]]<>\"\",HLOOKUP(Betyg[[#This Row],[Resultat]],Betygstabell,3),\"\")","v":""}]
[]
[null,"Sammanfattning av klassen",null,"Resultat","Bokstavsbetyg","Snittbetyg","","","","","","","","","","",""]
[null," Medel",null,{"$f":"IFERROR(AVERAGE(Betyg[[#All],[Resultat]]),0)","v":{"v":0,"d":"0.0%"}},{"$f":"IFERROR(HLOOKUP(D18,Betygstabell,2),\"\")","v":"F"},{"$f":"IFERROR(AVERAGE(Betyg[[#All],[Snittbetyg]]),0)","v":0},"","","","","","","","","","","","","","","","",""]
[null," Högsta poäng",null,{"$f":"IFERROR(MAX(Betyg[[#All],[Resultat]]),0)","v":{"v":0,"d":"0.0%"}},{"$f":"IFERROR(HLOOKUP(D19,Betygstabell,2),\"\")","v":"F"},{"$f":"IFERROR(MAX(Betyg[[#All],[Snittbetyg]]),0)","v":0},"","","","","","","","","","","","","","","","",""]
[null," Lägsta poäng",null,{"$f":"IFERROR(MIN(Betyg[[#All],[Resultat]]),0)","v":{"v":0,"d":"0.0%"}},{"$f":"IFERROR(HLOOKUP(D20,Betygstabell,2),\"\")","v":"F"},{"$f":"IFERROR(MIN(Betyg[[#All],[Snittbetyg]]),0)","v":0},"","","","","","","","","","","","","","","","",""]